fUST/lending_fUST_20240819
["ID","MTS","AMOUNT","RATE_DAILY","PERIOD"]
[335247471,1724032240377,-207.202017,0.00014465,2]
[335247474,1724032240394,-500.0,0.00014676,2]
[335247475,1724032240409,-358.190943,0.00014795,2]
[335247476,1724032240424,-155.46671401,0.00015,2]
[335247477,1724032240438,-953.38755458,0.00015,2]
[335247478,1724032240453,-500.0,0.00015449,2]
[335247479,1724032240469,-5244.78933856,0.0001549,2]
[335247480,1724032240480,-5244.78933856,0.0001549,2]
[335247481,1724032240493,-1726.37638893,0.000159,2]
[335247482,1724032240508,-5328.69624806,0.00015934,2]
[335247483,1724032240524,-247.98372407,0.00016,2]
[335247484,1724032240538,-1096.49,0.00016,2]
[335247485,1724032240554,-176.10769349,0.00016088,2]
[335247486,1724032240571,-500.0,0.00016088,2]
[335247487,1724032240582,-500.0,0.00016088,2]
[335247488,1724032240593,-388.8250745,0.00016088,2]
[335247489,1724032240607,-500.0,0.00016088,2]
[335247490,1724032240622,-150.0,0.0001609,2]
[335247491,1724032240635,-521.0,0.0001609,2]
[335247492,1724032240650,-1414.0,0.0001609,2]
[335247493,1724032240663,-8333.0,0.0001609,2]
[335247494,1724032240676,-150.068,0.0001609,2]
[335247495,1724032240688,-150.049,0.0001609,2]
[335247496,1724032240700,-260.9269844,0.00016164,2]
[335247497,1724032240717,-1762.88265303,0.00016214,2]
[335247498,1724032240729,-2000.0,0.00016214,2]
[335247499,1724032240741,-1762.88265299,0.00016245,2]
[335247500,1724032240754,-500.0,0.00016262,2]
[335247501,1724032240766,-1762.88265299,0.00016276,2]
[335247502,1724032240779,-1762.88265299,0.00016307,2]
[335247503,1724032240791,-60068.6673025,0.00016308,2]
[335247504,1724032240804,-42389.49559547,0.00016311,2]
[335247519,1724032246327,-150.128,0.0001609,2]
[335247520,1724032246338,-17679.17170703,0.00016311,2]
[335247521,1724032246348,-42508.08133835,0.00016314,2]
[335247532,1724032254502,600.88577429,9.641e-05,2]
[335247545,1724033231111,-300.0,8.86e-05,2]
[335247546,1724033231133,-129.89961587,8.861e-05,2]
[335247547,1724033241099,-446.18474712,8.861e-05,2]
[335247560,1724033369111,-8873.45139618,8.521e-05,2]
[335247561,1724033369133,-300.0,8.86e-05,2]
[335247562,1724033369155,-300.0,8.86e-05,2]
[335247563,1724033369176,-1838.75388782,8.861e-05,2]
[335247564,1724033369197,-977.23673703,8.861e-05,2]
[335247565,1724033369218,-4590.11439501,8.861e-05,2]
[335247566,1724033369238,-197.12618122,9.429e-05,2]
[335247567,1724033369258,-11650.54879472,9.443e-05,2]
[335247568,1724033369278,-206.11151257,9.524e-05,2]
[335247569,1724033369301,-182.880806,9.543e-05,2]
[335247570,1724033369323,-182.880806,9.569e-05,2]
[335247571,1724033369349,-182.880806,9.595e-05,2]
[335247572,1724033369370,-182.880806,9.621e-05,2]
[335247573,1724033369391,-182.880806,9.647e-05,2]
[335247574,1724033369412,-182.880806,9.674e-05,2]
[335247575,1724033369434,-182.880806,9.7e-05,2]
[335247576,1724033369457,-182.880806,9.726e-05,2]
[335247577,1724033369487,-420.0,9.746e-05,2]
[335247578,1724033369508,-302.0,9.746e-05,2]
[335247579,1724033369531,-182.880806,9.752e-05,2]
[335247580,1724033369552,-182.880806,9.778e-05,2]
[335247581,1724033369574,-182.880806,9.804e-05,2]
[335247582,1724033369596,-182.880806,9.831e-05,2]
[335247583,1724033369617,-182.880806,9.857e-05,2]
[335247584,1724033369639,-182.880806,9.883e-05,2]
[335247585,1724033369661,-155.08369652,9.899e-05,2]
[335247586,1724033369682,-182.880806,9.909e-05,2]
[335247587,1724033369705,-24900.0,9.927e-05,2]
[335247588,1724033369727,-182.880806,9.935e-05,2]
[335247589,1724033369750,-182.880806,9.961e-05,2]
[335247590,1724033369775,-182.880806,9.988e-05,2]
[335247591,1724033369799,-182.880806,0.00010014,2]
[335247592,1724033369824,-182.880806,0.0001004,2]
[335247593,1724033369847,-7895.61424334,0.00010081,2]
[335247594,1724033369869,-587.0,0.00010721,2]
[335247595,1724033369890,-6578.56362463,0.00010738,2]
[335247596,1724033369912,-11678.11361986,0.00010738,2]
[335247616,1724033438250,-183.1036749,8.883e-05,2]
[335247618,1724033438261,-810.36618232,0.00010544,2]
[335247620,1724033438272,-300.0,0.00010737,2]
[335247621,1724033438284,-2073.0,0.00010739,2]
[335247622,1724033438295,-240.23396846,0.00010739,2]
[335247623,1724033438306,-166.59174968,0.0001074,4]
[335247624,1724033438316,-157.14406492,0.0001074,2]
[335247625,1724033438326,-2131.60417818,0.0001074,2]
[335247626,1724033438336,-330.74744762,0.0001074,2]
[335247627,1724033438345,-7491.16569015,0.0001074,2]
[335247628,1724033438355,-181.57,0.00010959,2]
[335247629,1724033438365,-154.90304938,0.00011,2]
[335247630,1724033438375,-24900.0,0.00011333,2]
[335247631,1724033438385,-201.97179664,0.00011408,2]
[335247632,1724033438396,-172.52764061,0.00011409,2]
[335247633,1724033438406,-420.0,0.00011811,2]
[335247634,1724033438416,-600.88577429,0.00012886,2]
[335247635,1724033438425,-2235.69666458,0.000129,2]
[335247636,1724033438435,-573.35555146,0.0001295,2]
[335247637,1724033438444,-862.44048895,0.00013,2]
[335247638,1724033438453,-495.08490026,0.00013016,2]
[335247639,1724033438464,-2235.69666451,0.00013416,2]
[335247640,1724033438473,-1762.88265303,0.00013488,2]
[335247641,1724033438483,-114118.609301,0.00013568,2]
[335247642,1724033438492,-933.72662297,0.00013588,2]
[335247643,1724033438502,-176.10769349,0.00013698,2]
[335247644,1724033438511,-500.0,0.00013698,2]
[335247645,1724033438520,-500.0,0.00013698,2]
[335247646,1724033438530,-500.0,0.00013698,2]
[335247647,1724033438540,-388.8250745,0.00013698,2]
[335247648,1724033438549,-500.0,0.00013699,2]
[335247649,1724033438559,-500.0,0.00013699,2]
[335247650,1724033438568,-500.0,0.00013699,2]
[335247651,1724033438578,-500.0,0.00013699,2]
[335247652,1724033438587,-500.0,0.00013699,2]
[335247653,1724033438597,-500.0,0.00013699,2]
[335247654,1724033438606,-500.0,0.00013699,2]
[335247655,1724033438615,-500.0,0.00013699,2]
[335247656,1724033438625,-620.39471822,0.00013699,2]
[335247657,1724033438634,-500.0,0.00013699,2]
[335247658,1724033438644,-500.0,0.00013699,2]
[335247659,1724033438654,-500.0,0.00013699,2]
[335247660,1724033438663,-500.0,0.00013699,2]
[335247661,1724033438674,-500.0,0.00013699,2]
[335247662,1724033438685,-500.0,0.00013699,2]
[335247663,1724033438695,-500.0,0.00013699,2]
[335247664,1724033438706,-500.0,0.00013699,2]
[335247665,1724033438715,-500.0,0.00013699,2]
[335247666,1724033438725,-500.0,0.00013699,2]
[335247667,1724033438734,-500.0,0.00013699,2]
[335247668,1724033438745,-500.0,0.00013835,2]
[335247669,1724033438755,-155.05103229,0.00014,2]
[335247670,1724033438765,-162.161321,0.000141,2]
[335247671,1724033438775,-1762.88265299,0.00014166,2]
[335247672,1724033438786,-175.691158,0.00014247,2]
[335247673,1724033438920,-160.454721,0.00014247,2]
[335247674,1724033438931,-150.112233,0.000144,2]
[335247675,1724033438940,-150.112233,0.000144,2]
[335247676,1724033438949,-330.15136646,0.00014519,2]
[335247677,1724033438958,-500.0,0.00014564,2]
[335247678,1724033438969,-150.112233,0.000147,2]
[335247679,1724033438980,-150.112233,0.000147,2]
[335247680,1724033438991,-375.589519,0.00014795,2]
[335247681,1724033439000,-1762.88265299,0.00014844,2]
[335247682,1724033439011,-953.38755458,0.00015,2]
[335247683,1724033439021,-154.69833824,0.00015,2]
[335247684,1724033439031,-150.112233,0.00015,2]
[335247685,1724033439041,-150.112233,0.000151,2]
[335247686,1724033439051,-150.112233,0.000153,2]
[335247687,1724033439061,-500.0,0.0001533,2]
[335247688,1724033439070,-160.0,0.00015376,3]
[335247689,1724033439080,-150.112233,0.000154,2]
[335247690,1724033439090,-373.3764537,0.00015452,2]
[335247691,1724033439100,-150.112233,0.000155,2]
[335247692,1724033439109,-1762.88265299,0.00015522,2]
[335247693,1724033439119,-1414.0,0.00015545,2]
[335247694,1724033439128,-8333.0,0.00015545,2]
[335247695,1724033439138,-862.595182,0.00015671,2]
[335247696,1724033439148,-741.687609,0.00015671,2]
[335247697,1724033439158,-168.957478,0.00015671,2]
[335247698,1724033439168,-286.865971,0.00015671,2]
[335247699,1724033439177,-246.652647,0.00015671,2]
[335247700,1724033439188,-286.865969,0.00015671,2]
[335247701,1724033439198,-246.652646,0.00015671,2]
[335247702,1724033439208,-168.845345,0.00015671,2]
[335247703,1724033439218,-150.112233,0.000158,2]
[335247704,1724033439228,-150.112233,0.000158,2]
[335247705,1724033439237,-862.595182,0.00015867,2]
[335247706,1724033439246,-741.687609,0.00015867,2]
[335247707,1724033439256,-415.0567959,0.0001589,2]
[335247708,1724033439267,-415.0567957,0.00015945,2]
[335247709,1724033439276,-150.47712021,0.0001595,2]
[335247710,1724033439286,-247.98372407,0.00016,2]
[335247711,1724033439296,-5328.69624806,0.00016034,2]
[335247712,1724033439307,-862.595182,0.00016063,2]
[335247713,1724033439318,-741.687609,0.00016063,2]
[335247714,1724033439329,-57059.3046503,0.0001608,2]
[335247715,1724033439341,-150.594,0.0001609,2]
[335247716,1724033439352,-150.0,0.0001609,2]
[335247717,1724033439363,-150.074,0.0001609,2]
[335247718,1724033439374,-150.0,0.0001609,2]
[335247719,1724033439383,-521.0,0.0001609,2]
[335247720,1724033439393,-150.112233,0.000161,2]
[335247721,1724033439403,-150.112233,0.000161,2]
[335247722,1724033439413,-500.0,0.00016137,2]
[335247723,1724033439422,-500.0,0.00016137,2]
[335247724,1724033439432,-1110.9613583,0.00016141,2]
[335247725,1724033439442,-211.5487943,0.00016164,2]
[335247726,1724033439451,-153.0,0.00016164,2]
[335247727,1724033439461,-153.0,0.00016164,2]
[335247728,1724033439470,-207.5283978,0.00016164,2]
[335247729,1724033439480,-268.6960567,0.00016164,2]
[335247730,1724033439489,-153.0,0.00016164,2]
[335247731,1724033439499,-153.0,0.00016164,2]
[335247732,1724033439508,-3221.0992881,0.00016174,2]
[335247733,1724033439520,-1762.88265299,0.000162,2]
[335247734,1724033439531,-114118.609301,0.00016201,2]
[335247735,1724033439543,-57059.3046503,0.00016211,2]
[335247736,1724033439554,-66259.89131293,0.00016221,2]
[335247737,1724033439565,-862.595182,0.00016259,2]
[335247738,1724033439576,-741.687609,0.00016259,2]
[335247739,1724033439586,-151.0,0.00016259,2]
[335247740,1724033439598,-198.659333,0.00016259,2]
[335247741,1724033439607,-198.659333,0.00016259,2]
[335247742,1724033439617,-151.0,0.00016259,2]
[335247743,1724033439627,-151.0,0.00016259,2]
[335247744,1724033439636,-151.0,0.00016259,2]
[335247745,1724033439647,-1429.649562,0.00016259,2]
[335247746,1724033439657,-1429.649562,0.00016259,2]
[335247747,1724033439666,-151.0,0.00016259,2]
[335247748,1724033439676,-151.0,0.00016259,2]
[335247750,1724033439685,-151.0,0.00016259,2]
[335247752,1724033439694,-152.35498,0.00016259,2]
[335247754,1724033439704,-251.144553,0.00016259,2]
[335247756,1724033439713,-483.680537,0.00016259,2]
[335247758,1724033439723,-483.680537,0.00016259,2]
[335247760,1724033439732,-422.985673,0.00016259,2]
[335247762,1724033439741,-422.985673,0.00016259,2]
[335247764,1724033439751,-289.12333,0.00016259,2]
[335247766,1724033439760,-919.360107,0.00016259,2]
[335247768,1724033439769,-919.360107,0.00016259,2]
[335247770,1724033439779,-1470.182121,0.00016259,2]
[335247772,1724033439789,-1470.182121,0.00016259,2]
[335247774,1724033439798,-1364.310846,0.00016259,2]
[335247776,1724033439808,-1862.215653,0.00016259,2]
[335247778,1724033439818,-178.886012,0.00016259,2]
[335247780,1724033439828,-1364.310846,0.00016259,2]
[335247782,1724033439838,-1862.215653,0.00016259,2]
[335247784,1724033439848,-178.886012,0.00016259,2]
[335247785,1724033439859,-151.0,0.00016259,2]
[335247786,1724033439869,-151.0,0.00016259,2]
[335247787,1724033439878,-328.346539,0.00016259,2]
[335247788,1724033439888,-328.346539,0.00016259,2]
[335247789,1724033439898,-465.335585,0.00016259,2]
[335247790,1724033439908,-465.335585,0.00016259,2]
[335247791,1724033439917,-583.418424,0.00016259,2]
[335247792,1724033439926,-583.418424,0.00016259,2]
[335247793,1724033439936,-401.962384,0.00016259,2]
[335247794,1724033439945,-401.962384,0.00016259,2]
[335247795,1724033439955,-252.453748,0.00016259,2]
[335247796,1724033439965,-151.0,0.00016259,2]
[335247797,1724033439978,-252.453748,0.00016259,2]
[335247798,1724033439988,-471.499468,0.00016259,2]
[335247799,1724033439997,-471.499468,0.00016259,2]
[335247800,1724033440006,-583.418424,0.00016264,2]
[335247801,1724033440016,-583.418424,0.00016264,2]
[335247802,1724033440026,-401.962384,0.00016264,2]
[335247803,1724033440035,-401.962384,0.00016264,2]
[335247804,1724033440044,-151.0,0.00016264,2]
[335247805,1724033440055,-471.499468,0.00016264,2]
[335247806,1724033440064,-471.499468,0.00016264,2]
[335247807,1724033440073,-153.0,0.00016274,2]
[335247808,1724033440083,-153.0,0.00016274,2]
[335247809,1724033440092,-153.0,0.00016274,2]
[335247810,1724033440102,-153.0,0.00016274,2]
[335247811,1724033440111,-316.4827715,0.00016274,2]
[335247812,1724033440120,-32038.40572544,0.00016274,2]
[335247813,1724033440129,-151.0,0.00016274,2]
[335247814,1724033440139,-198.659333,0.00016274,2]
[335247816,1724033440149,-198.659333,0.00016274,2]
[335247818,1724033440159,-154.619383,0.00016274,2]
[335247820,1724033440168,-151.0,0.00016274,2]
[335247822,1724033440178,-151.0,0.00016274,2]
[335247824,1724033440187,-1429.649562,0.00016274,2]
[335247826,1724033440197,-1429.649562,0.00016274,2]
[335247828,1724033440206,-151.0,0.00016274,2]
[335247829,1724033440215,-151.0,0.00016274,2]
[335247830,1724033440225,-151.0,0.00016274,2]
[335247831,1724033440234,-483.680537,0.00016274,2]
[335247832,1724033440243,-483.680537,0.00016274,2]
[335247833,1724033440252,-422.985673,0.00016274,2]
[335247834,1724033440262,-422.985673,0.00016274,2]
[335247835,1724033440271,-919.360107,0.00016274,2]
[335247836,1724033440280,-919.360107,0.00016274,2]
[335247837,1724033440289,-1470.182121,0.00016274,2]
[335247838,1724033440298,-1470.182121,0.00016274,2]
[335247839,1724033440308,-1364.310846,0.00016274,2]
[335247840,1724033440317,-1862.215653,0.00016274,2]
[335247841,1724033440326,-178.886012,0.00016274,2]
[335247843,1724033440336,-1364.310846,0.00016274,2]
[335247845,1724033440345,-1862.215653,0.00016274,2]
[335247847,1724033440354,-178.886012,0.00016274,2]
[335247849,1724033440363,-151.0,0.00016274,2]
[335247851,1724033440372,-151.0,0.00016274,2]
[335247853,1724033440381,-328.346539,0.00016274,2]
[335247854,1724033440392,-328.346539,0.00016274,2]
[335247855,1724033440402,-465.335585,0.00016274,2]
[335247856,1724033440411,-465.335585,0.00016274,2]
[335247857,1724033440420,-252.453748,0.00016274,2]
[335247858,1724033440430,-252.453748,0.00016274,2]
[335247859,1724033440439,-151.0,0.0001629,2]
[335247860,1724033440449,-198.659333,0.0001629,2]
[335247861,1724033440458,-198.659333,0.0001629,2]
[335247862,1724033440468,-151.0,0.0001629,2]
[335247863,1724033440477,-151.0,0.0001629,2]
[335247864,1724033440487,-1429.649562,0.0001629,2]
[335247865,1724033440496,-1429.649562,0.0001629,2]
[335247866,1724033440505,-151.0,0.0001629,2]
[335247867,1724033440514,-151.0,0.0001629,2]
[335247868,1724033440524,-154.849305,0.0001629,2]
[335247869,1724033440533,-483.680537,0.0001629,2]
[335247871,1724033440542,-483.680537,0.0001629,2]
[335247873,1724033440552,-422.985673,0.0001629,2]
[335247875,1724033440562,-422.985673,0.0001629,2]
[335247876,1724033440571,-919.360107,0.0001629,2]
[335247878,1724033440581,-919.360107,0.0001629,2]
[335247879,1724033440591,-1470.182121,0.0001629,2]
[335247880,1724033440600,-1470.182121,0.0001629,2]
[335247881,1724033440610,-1364.310846,0.0001629,2]
[335247882,1724033440619,-1862.215653,0.0001629,2]
[335247883,1724033440628,-178.886012,0.0001629,2]
[335247884,1724033440638,-1364.310846,0.0001629,2]
[335247885,1724033440651,-1862.215653,0.0001629,2]
[335247886,1724033440662,-178.886012,0.0001629,2]
[335247887,1724033440671,-151.0,0.0001629,2]
[335247888,1724033440680,-151.0,0.0001629,2]
[335247889,1724033440689,-328.346539,0.0001629,2]
[335247890,1724033440699,-328.346539,0.0001629,2]
[335247891,1724033440708,-465.335585,0.0001629,2]
[335247892,1724033440718,-465.335585,0.0001629,2]
[335247893,1724033440727,-583.418424,0.0001629,2]
[335247894,1724033440736,-583.418424,0.0001629,2]
[335247895,1724033440746,-401.962384,0.0001629,2]
[335247896,1724033440755,-401.962384,0.0001629,2]
[335247897,1724033440765,-252.453748,0.0001629,2]
[335247898,1724033440774,-252.453748,0.0001629,2]
[335247899,1724033440784,-151.0,0.0001629,2]
[335247900,1724033440794,-471.499468,0.0001629,2]
[335247901,1724033440806,-471.499468,0.0001629,2]
[335247902,1724033440816,-113667.77341733,0.000163,2]
[335247903,1724033440826,-222.456338,0.000163,2]
[335247904,1724033440836,-222.456338,0.000163,2]
[335247905,1724033440845,-151.0,0.000163,2]
[335247906,1724033440856,-151.0,0.000163,2]
[335247907,1724033440866,-1155.878446,0.000163,2]
[335247908,1724033440979,-1155.878446,0.000163,2]
[335247909,1724033440990,-151.0,0.000163,2]
[335247910,1724033441000,-783.698813,0.000163,2]
[335247911,1724033441011,-783.698813,0.000163,2]
[335247912,1724033441020,-151.0,0.000163,2]
[335247913,1724033441030,-151.0,0.000163,2]
[335247914,1724033441041,-151.0,0.000163,2]
[335247915,1724033441051,-198.659333,0.000163,2]
[335247916,1724033441060,-198.659333,0.000163,2]
[335247917,1724033441070,-151.0,0.000163,2]
[335247918,1724033441079,-151.0,0.000163,2]
[335247919,1724033441090,-1429.649562,0.000163,2]
[335247920,1724033441100,-1429.649562,0.000163,2]
[335247921,1724033441109,-151.0,0.000163,2]
[335247922,1724033441119,-151.0,0.000163,2]
[335247923,1724033441130,-483.680537,0.000163,2]
[335247924,1724033441139,-483.680537,0.000163,2]
[335247925,1724033441150,-422.985673,0.000163,2]
[335247926,1724033441159,-422.985673,0.000163,2]
[335247927,1724033441169,-919.360107,0.000163,2]
[335247928,1724033441179,-919.360107,0.000163,2]
[335247929,1724033441189,-1470.182121,0.000163,2]
[335247930,1724033441198,-1470.182121,0.000163,2]
[335247931,1724033441209,-1364.310846,0.000163,2]
[335247932,1724033441219,-1862.215653,0.000163,2]
[335247933,1724033441229,-178.886012,0.000163,2]
[335247934,1724033441238,-1364.310846,0.000163,2]
[335247935,1724033441247,-1862.215653,0.000163,2]
[335247936,1724033441257,-178.886012,0.000163,2]
[335247937,1724033441267,-151.0,0.000163,2]
[335247938,1724033441278,-151.0,0.000163,2]
[335247939,1724033441288,-328.346539,0.000163,2]
[335247940,1724033441298,-328.346539,0.000163,2]
[335247941,1724033441308,-465.335585,0.000163,2]
[335247942,1724033441318,-465.335585,0.000163,2]
[335247943,1724033441327,-583.418424,0.000163,2]
[335247944,1724033441336,-583.418424,0.000163,2]
[335247945,1724033441346,-401.962384,0.000163,2]
[335247946,1724033441355,-401.962384,0.000163,2]
[335247947,1724033441365,-252.453748,0.000163,2]
[335247948,1724033441375,-252.453748,0.000163,2]
[335247949,1724033441384,-151.0,0.000163,2]
[335247950,1724033441396,-471.499468,0.000163,2]
[335247951,1724033441406,-471.499468,0.000163,2]
[335247952,1724033441416,-58237.06630224,0.00016321,2]
[335247953,1724033441425,-151.0,0.00016321,2]
[335247954,1724033441435,-151.0,0.00016321,2]
[335247955,1724033441445,-162.657237,0.00016321,2]
[335247956,1724033441455,-151.0,0.00016321,2]
[335247957,1724033441465,-266.246463,0.00016321,2]
[335247958,1724033441474,-266.246463,0.00016321,2]
[335247959,1724033441483,-222.456338,0.00016321,2]
[335247960,1724033441492,-222.456338,0.00016321,2]
[335247961,1724033441503,-151.0,0.00016321,2]
[335247962,1724033441513,-151.0,0.00016321,2]
[335247963,1724033441522,-1155.878446,0.00016321,2]
[335247964,1724033441532,-1155.878446,0.00016321,2]
[335247965,1724033441541,-151.0,0.00016321,2]
[335247966,1724033441550,-783.698813,0.00016321,2]
[335247967,1724033441560,-783.698813,0.00016321,2]
[335247968,1724033441570,-151.0,0.00016321,2]
[335247969,1724033441580,-151.0,0.00016321,2]
[335247970,1724033441590,-151.0,0.00016321,2]
[335247971,1724033441599,-198.659333,0.00016321,2]
[335247972,1724033441609,-198.659333,0.00016321,2]
[335247973,1724033441618,-151.0,0.00016321,2]
[335247974,1724033441627,-151.0,0.00016321,2]
[335247975,1724033441637,-1429.649562,0.00016321,2]
[335247976,1724033441647,-1429.649562,0.00016321,2]
[335247977,1724033441658,-151.0,0.00016321,2]
[335247978,1724033441668,-151.0,0.00016321,2]
[335247979,1724033441677,-483.680537,0.00016321,2]
[335247980,1724033441688,-483.680537,0.00016321,2]
[335247981,1724033441698,-422.985673,0.00016321,2]
[335247982,1724033441708,-422.985673,0.00016321,2]
[335247983,1724033441717,-919.360107,0.00016321,2]
[335247984,1724033441727,-919.360107,0.00016321,2]
[335247985,1724033441736,-1470.182121,0.00016321,2]
[335247986,1724033441746,-1470.182121,0.00016321,2]
[335247987,1724033441756,-1364.310846,0.00016321,2]
[335247988,1724033441766,-1862.215653,0.00016321,2]
[335247989,1724033441775,-178.886012,0.00016321,2]
[335247990,1724033441785,-1364.310846,0.00016321,2]
[335247991,1724033441795,-1862.215653,0.00016321,2]
[335247992,1724033441805,-178.886012,0.00016321,2]
[335247993,1724033441814,-151.0,0.00016321,2]
[335247994,1724033441824,-151.0,0.00016321,2]
[335247995,1724033441834,-328.346539,0.00016321,2]
[335247996,1724033441844,-328.346539,0.00016321,2]
[335247997,1724033441853,-465.335585,0.00016321,2]
[335247998,1724033441863,-465.335585,0.00016321,2]
[335247999,1724033441872,-583.418424,0.00016321,2]
[335248000,1724033441882,-583.418424,0.00016321,2]
[335248001,1724033441893,-401.962384,0.00016321,2]
[335248002,1724033441903,-401.962384,0.00016321,2]
[335248003,1724033441912,-252.453748,0.00016321,2]
[335248004,1724033441922,-151.0,0.00016321,2]
[335248005,1724033441931,-252.453748,0.00016321,2]
[335248006,1724033441941,-471.499468,0.00016321,2]
[335248007,1724033441951,-471.499468,0.00016321,2]
[335248008,1724033441961,-151.0,0.00016338,2]
[335248009,1724033441974,-151.0,0.00016338,2]
[335248010,1724033441984,-151.0,0.00016338,2]
[335248011,1724033441993,-266.246463,0.00016338,2]
[335248012,1724033442003,-266.246463,0.00016338,2]
[335248013,1724033442013,-222.456338,0.00016338,2]
[335248014,1724033442022,-222.456338,0.00016338,2]
[335248015,1724033442032,-151.0,0.00016338,2]
[335248016,1724033442041,-151.0,0.00016338,2]
[335248017,1724033442050,-1155.878446,0.00016338,2]
[335248018,1724033442059,-1155.878446,0.00016338,2]
[335248019,1724033442069,-151.0,0.00016338,2]
[335248020,1724033442078,-783.698813,0.00016338,2]
[335248021,1724033442088,-783.698813,0.00016338,2]
[335248022,1724033442097,-151.0,0.00016338,2]
[335248023,1724033442107,-151.0,0.00016338,2]
[335248024,1724033442116,-151.0,0.00016338,2]
[335248025,1724033442126,-198.659333,0.00016338,2]
[335248026,1724033442135,-198.659333,0.00016338,2]
[335248027,1724033442144,-151.0,0.00016338,2]
[335248028,1724033442153,-151.0,0.00016338,2]
[335248029,1724033442163,-1429.649562,0.00016338,2]
[335248030,1724033442172,-1429.649562,0.00016338,2]
[335248031,1724033442182,-151.0,0.00016338,2]
[335248032,1724033442191,-151.0,0.00016338,2]
[335248033,1724033442200,-483.680537,0.00016338,2]
[335248034,1724033442210,-483.680537,0.00016338,2]
[335248035,1724033442219,-422.985673,0.00016338,2]
[335248036,1724033442229,-422.985673,0.00016338,2]
[335248037,1724033442239,-919.360107,0.00016338,2]
[335248038,1724033442248,-919.360107,0.00016338,2]
[335248039,1724033442257,-1470.182121,0.00016338,2]
[335248040,1724033442267,-1470.182121,0.00016338,2]
[335248041,1724033442276,-1364.310846,0.00016338,2]
[335248042,1724033442286,-1862.215653,0.00016338,2]
[335248043,1724033442295,-178.886012,0.00016338,2]
[335248044,1724033442305,-1364.310846,0.00016338,2]
[335248045,1724033442314,-1862.215653,0.00016338,2]
[335248046,1724033442324,-178.886012,0.00016338,2]
[335248047,1724033442333,-151.0,0.00016338,2]
[335248048,1724033442343,-185.89633,0.00016338,2]
[335248049,1724033442352,-328.346539,0.00016338,2]
[335248050,1724033442362,-328.346539,0.00016338,2]
[335248051,1724033442371,-465.335585,0.00016338,2]
[335248052,1724033442381,-465.335585,0.00016338,2]
[335248053,1724033442390,-583.418424,0.00016338,2]
[335248054,1724033442400,-583.418424,0.00016338,2]
[335248055,1724033442409,-401.962384,0.00016338,2]
[335248056,1724033442419,-401.962384,0.00016338,2]
[335248057,1724033442428,-252.453748,0.00016338,2]
[335248058,1724033442437,-151.0,0.00016338,2]
[335248059,1724033442446,-252.453748,0.00016338,2]
[335248060,1724033442456,-471.499468,0.00016338,2]
[335248061,1724033442465,-471.499468,0.00016338,2]
[335248062,1724033442475,-40000.0,0.00016338,2]
[335248063,1724033442484,-243.0161,0.00016356,2]
[335248065,1724033442494,-160.0,0.00016371,4]
[335248067,1724033442504,-200.0,0.00016373,2]
[335248069,1724033442513,-151.0,0.0001639,2]
[335248071,1724033442523,-3000.0,0.000164,2]
[335248072,1724033442532,-151.0,0.000164,2]
[335248073,1724033442541,-151.0,0.000164,2]
[335248074,1724033442550,-1155.878446,0.000164,2]
[335248075,1724033442559,-1155.878446,0.000164,2]
[335248076,1724033442569,-151.0,0.000164,2]
[335248077,1724033442578,-783.698813,0.000164,2]
[335248078,1724033442588,-783.698813,0.000164,2]
[335248079,1724033442597,-154.25959,0.000164,2]
[335248080,1724033442606,-151.0,0.000164,2]